bitfinex-derivatives/quotes_BNBF0:USTF0_20251027
["timestamp","ask_amount","ask_price","bid_price","bid_amount"]
[1761587840619,0.50240133,1150.5,1149.3,1.2957951]
[1761587840821,1.141,1150.8,1149.3,1.2957951]
[1761587841124,0.50239303,1150.7,1149.3,1.2957951]
[1761587841320,0.50239303,1150.6,1149.3,1.2957951]
[1761587841524,0.50239303,1150.5,1149.3,1.2957951]
[1761587841722,1.141,1150.8,1149.3,1.2957951]
[1761587841922,0.50236508,1150.7,1149.3,1.2957951]
[1761587842125,0.50236508,1150.6,1149.3,1.2957951]
[1761587842422,0.50236508,1150.5,1149.3,1.2957951]
[1761587842624,1.141,1150.8,1149.3,1.2957951]
[1761587842825,0.5023384,1150.7,1149.3,1.2957951]
[1761587843026,0.5023384,1150.6,1149.3,1.2957951]
[1761587843226,0.5023384,1150.5,1149.3,1.2957951]
[1761587843527,1.141,1150.8,1149.3,1.2957951]
[1761587843728,0.50231963,1150.7,1149.3,1.2957951]
[1761587843928,0.50231963,1150.6,1149.3,1.2957951]
[1761587844125,0.50231963,1150.5,1149.3,1.2957951]
[1761587844429,0.5023143,1150.4,1149.3,1.2957951]
[1761587844625,1.141,1150.8,1149.3,1.2957951]
[1761587844829,0.5023143,1150.7,1149.4,1.2957951]
[1761587845125,0.5023143,1150.6,1149.4,1.2957951]
[1761587845428,0.5023143,1150.5,1149.3,1.2957951]
[1761587845626,0.6503789,1150.9,1149.4,1.2957951]
[1761587845824,0.50225637,1150.8,1149.4,1.2957951]
[1761587846023,0.50225637,1150.7,1149.5,1.2957951]
[1761587846224,0.50225637,1150.6,1149.5,1.2957951]
[1761587846426,0.50225637,1150.5,1149.5,1.2957951]
[1761587846630,0.6503789,1150.8,1149.5,1.2957951]
[1761587846825,0.50221608,1150.7,1149.5,1.2957951]
[1761587847029,0.50221608,1150.6,1149.5,1.2957951]
[1761587847225,0.50221608,1150.5,1149.5,1.2957951]
[1761587847427,0.6503789,1151.0,1149.5,1.2957951]
[1761587847629,0.50214309,1150.9,1149.5,1.2957951]
[1761587847825,0.50214309,1150.8,1149.5,1.2957951]
[1761587848126,0.50214309,1150.7,1149.5,1.2957951]
[1761587848324,0.50214309,1150.6,1149.5,1.2957951]
[1761587848528,0.91,1150.8,1149.5,1.2957951]
[1761587848725,0.5021345,1150.7,1149.5,1.2957951]
[1761587848925,0.5021345,1150.6,1149.5,1.2957951]
[1761587849124,0.91,1150.8,1149.5,1.2957951]
[1761587849425,0.50213861,1150.7,1149.4,1.2957951]
[1761587849625,0.50213861,1150.6,1149.4,1.2957951]
[1761587849926,0.91,1150.8,1149.4,1.2957951]
[1761587850125,0.5021309,1150.7,1149.4,1.2957951]
[1761587850329,0.5021309,1150.6,1149.4,1.2957951]
[1761587850629,0.91,1150.8,1149.4,1.2957951]
[1761587850825,0.50212236,1150.7,1149.4,1.2957951]
[1761587851025,0.50212236,1150.6,1149.4,1.2957951]
[1761587851228,0.91,1150.8,1149.4,1.2957951]
[1761587851524,0.50211663,1150.7,1149.4,1.2957951]
[1761587851724,0.50211663,1150.6,1149.4,1.2957951]
[1761587852028,0.91,1150.8,1149.4,1.2957951]
[1761587852226,0.50211797,1150.7,1149.4,1.2957951]
[1761587852429,0.50211797,1150.6,1149.4,1.2957951]
[1761587852729,0.91,1150.8,1149.4,1.2957951]
[1761587852926,0.50218597,1150.7,1149.4,1.2957951]
[1761587853131,0.50218597,1150.6,1149.4,1.2957951]
[1761587853332,0.91,1150.8,1149.4,1.2957951]
[1761587853529,0.50218106,1150.7,1149.4,1.2957951]
[1761587853733,0.91,1150.8,1149.6,1.2957951]
[1761587853933,0.50211555,1150.7,1149.7,1.2957951]
[1761587854129,0.91,1150.8,1149.7,1.2957951]
[1761587854329,0.50212099,1150.7,1149.7,1.2957951]
[1761587854631,0.91,1150.8,1149.7,1.2957951]
[1761587854830,0.50212225,1150.7,1149.7,1.2957951]
[1761587855033,0.91,1150.8,1149.7,1.2957951]
[1761587855230,0.50212973,1150.7,1149.7,1.2957951]
[1761587855430,0.91,1150.8,1149.7,1.2957951]
[1761587855628,0.50212701,1150.7,1149.7,1.2957951]
[1761587855832,0.91,1150.8,1149.7,1.2957951]
[1761587856129,0.50212701,1150.7,1149.7,1.2957951]
[1761587856433,0.91,1150.8,1149.7,1.2957951]
[1761587856728,0.50214244,1150.7,1149.6,1.2957951]
[1761587856932,0.50214244,1150.6,1149.6,1.2957951]
[1761587857233,0.91,1150.8,1149.5,1.2957951]
[1761587857533,0.5021817,1150.7,1149.5,1.2957951]
[1761587857732,0.5021817,1150.6,1149.5,1.2957951]
[1761587858031,0.91,1150.8,1149.5,1.2957951]
[1761587858231,0.5021872,1150.7,1149.5,1.2957951]
[1761587858431,0.5021872,1150.6,1149.5,1.2957951]
[1761587858633,0.91,1150.8,1149.5,1.2957951]
[1761587858933,0.50218347,1150.7,1149.5,1.2957951]
[1761587859134,0.50218347,1150.6,1149.5,1.2957951]
[1761587859429,0.91,1150.8,1149.5,1.2957951]
[1761587859632,0.50218548,1150.7,1149.5,1.2957951]
[1761587859832,0.50218548,1150.6,1149.5,1.2957951]
[1761587860128,0.91,1150.8,1149.5,1.2957951]
[1761587860330,0.5021872,1150.7,1149.5,1.2957951]
[1761587860533,0.5021872,1150.6,1149.5,1.2957951]
[1761587860730,0.91,1150.8,1149.5,1.2957951]
[1761587860934,0.5021819,1150.7,1149.5,1.2957951]
[1761587861232,0.5021819,1150.6,1149.5,1.2957951]
[1761587861430,0.91,1150.8,1149.5,1.2957951]
[1761587861729,0.50218193,1150.7,1149.5,1.2957951]
[1761587861933,0.50218193,1150.6,1149.5,1.2957951]
[1761587862133,0.91,1150.8,1149.5,1.2957951]
[1761587862432,0.50219002,1150.7,1149.5,1.2957951]
[1761587862633,0.50219002,1150.6,1149.5,1.2957951]
[1761587862830,0.91,1150.8,1149.5,1.2957951]
[1761587863033,0.50218685,1150.7,1149.5,1.2957951]
[1761587863231,0.50218685,1150.6,1149.5,1.2957951]
[1761587863429,0.91,1150.8,1149.5,1.2957951]
[1761587863632,0.50219203,1150.7,1149.5,1.2957951]
[1761587863932,0.50219203,1150.6,1149.5,1.2957951]
[1761587864135,0.91,1150.8,1149.5,1.2957951]
[1761587864434,0.50219966,1150.7,1149.5,1.2957951]
[1761587864633,0.50219966,1150.6,1149.5,1.2957951]
[1761587864835,0.91,1150.8,1149.5,1.2957951]
[1761587865035,0.50218915,1150.7,1149.5,1.2957951]
[1761587865237,0.50218915,1150.6,1149.5,1.2957951]
[1761587865438,0.91,1150.8,1149.5,1.2957951]
[1761587865635,0.50218656,1150.7,1149.5,1.2957951]
[1761587865838,0.50218656,1150.6,1149.5,1.2957951]
[1761587866038,0.91,1150.8,1149.5,1.2957951]
[1761587866242,0.50219042,1150.7,1149.5,1.2957951]
[1761587866537,0.50219042,1150.6,1149.3,1.2957951]
[1761587866740,0.91,1150.8,1149.3,1.2957951]
[1761587866940,0.50218373,1150.7,1149.4,1.2957951]
[1761587867138,0.50218373,1150.6,1149.4,1.2957951]
[1761587867339,0.91,1150.8,1149.4,1.2957951]
[1761587867535,0.50219341,1150.7,1149.4,1.2957951]
[1761587867736,0.50219341,1150.6,1149.4,1.2957951]
[1761587867941,0.91,1150.8,1149.4,1.2957951]
[1761587868142,0.5021932,1150.7,1149.4,1.2957951]
[1761587868342,0.5021932,1150.6,1149.4,1.2957951]
[1761587868542,0.91,1150.8,1149.4,1.2957951]
[1761587868743,0.50219528,1150.7,1149.4,1.2957951]
[1761587868939,0.50219528,1150.6,1149.4,1.2957951]
[1761587869142,0.91,1150.8,1149.4,1.2957951]
[1761587869336,0.5022037,1150.7,1149.4,1.2957951]
[1761587869542,0.5022037,1150.6,1149.4,1.2957951]
[1761587869842,0.91,1150.8,1149.4,1.2957951]
[1761587870043,0.50219727,1150.7,1149.4,1.2957951]
[1761587870338,0.50219727,1150.6,1149.4,1.2957951]
[1761587870543,0.91,1150.8,1149.4,1.2957951]
[1761587870744,0.50220038,1150.7,1149.4,1.2957951]
[1761587870941,0.50220038,1150.6,1149.4,1.2957951]
[1761587871144,0.91,1150.8,1149.4,1.2957951]
[1761587871342,0.50220409,1150.7,1149.4,1.2957951]
[1761587871544,0.50220409,1150.6,1149.4,1.2957951]
[1761587871743,0.91,1150.8,1149.4,1.2957951]
[1761587871940,0.50220409,1150.7,1149.4,1.2957951]
[1761587872144,0.50220409,1150.6,1149.4,1.2957951]
[1761587872345,0.91,1150.8,1149.4,1.2957951]
[1761587872544,0.50220803,1150.7,1149.4,1.2957951]
[1761587872743,0.50220803,1150.6,1149.4,1.2957951]
[1761587872945,0.91,1150.8,1149.4,1.2957951]
[1761587873148,0.50220803,1150.7,1149.4,1.2957951]
[1761587873345,0.50220803,1150.6,1149.4,1.2957951]
[1761587873545,0.91,1150.8,1149.4,1.2957951]
[1761587873745,0.50221201,1150.7,1149.4,1.2957951]
[1761587873947,0.50221201,1150.6,1149.4,1.2957951]
[1761587874151,0.91,1150.8,1149.4,1.2957951]
[1761587874451,0.50222103,1150.7,1149.4,1.2957951]
[1761587874746,0.50222103,1150.6,1149.4,1.2957951]
[1761587874947,0.91,1150.8,1149.4,1.2957951]
[1761587875151,0.50221414,1150.7,1149.4,1.2957951]
[1761587875350,0.50221414,1150.6,1149.4,1.2957951]
[1761587875551,0.91,1150.8,1149.4,1.2957951]
[1761587875747,0.50222275,1150.7,1149.4,1.2957951]
[1761587876047,0.50222275,1150.6,1149.4,1.2957951]
[1761587876356,0.91,1150.8,1149.6,1.2957951]
[1761587876650,0.50223008,1150.7,1149.6,1.2957951]
[1761587876852,0.50223008,1150.6,1149.6,1.2957951]
[1761587877152,0.91,1150.8,1149.6,1.2957951]
[1761587877349,0.50223282,1150.7,1149.6,1.2957951]
[1761587877651,0.50223282,1150.6,1149.6,1.2957951]
[1761587877853,0.91,1150.8,1149.6,1.2957951]
[1761587878148,0.50223282,1150.7,1149.6,1.2957951]
[1761587878352,0.50223282,1150.6,1149.6,1.2957951]
[1761587878551,0.91,1150.8,1149.6,1.2957951]
[1761587878752,0.50224154,1150.7,1149.6,1.2957951]
[1761587879052,0.50224154,1150.6,1149.6,1.2957951]
[1761587879252,0.91,1150.8,1149.6,1.2957951]
[1761587879452,0.50225078,1150.7,1149.6,1.2957951]
[1761587879652,0.50225078,1150.6,1149.6,1.2957951]
[1761587879851,0.91,1150.8,1149.6,1.2957951]
[1761587880054,0.50225078,1150.7,1149.6,1.2957951]
[1761587880251,0.50225078,1150.6,1149.6,1.2957951]
[1761587880457,0.91,1150.8,1149.5,1.2957951]
[1761587880755,0.50225046,1150.7,1149.5,1.2957951]
[1761587880955,0.50225046,1150.6,1149.5,1.2957951]
[1761587881253,0.91,1150.8,1149.5,1.2957951]
[1761587881452,0.50226031,1150.7,1149.6,1.2957951]
[1761587881653,0.91,1150.8,1149.7,1.2957951]
[1761587881855,0.50221285,1150.7,1149.7,1.2957951]
[1761587882056,0.91,1150.8,1149.7,1.2957951]
[1761587882356,0.50221415,1150.7,1149.7,1.2957951]
[1761587882555,0.91,1150.8,1149.7,1.2957951]
[1761587882755,0.50231713,1150.7,1149.7,1.2957951]
[1761587882956,0.91,1150.8,1149.7,1.2957951]
[1761587883151,0.50231713,1150.7,1149.7,1.2957951]
[1761587883456,0.91,1150.8,1149.7,1.2957951]
[1761587883656,0.50232918,1150.7,1149.7,1.2957951]
[1761587883955,0.91,1150.8,1149.8,1.2957951]
[1761587884753,0.91,1150.8,1149.7,1.2957951]
[1761587885552,0.91,1150.8,1149.8,1.2957951]
[1761587885853,0.6503789,1151.4,1149.8,1.2957951]
[1761587886156,0.50220924,1151.3,1149.8,1.2957951]
[1761587886352,0.50220924,1151.2,1149.8,1.2957951]
[1761587886656,0.50220924,1151.1,1149.8,1.2957951]
[1761587886953,0.50220924,1151.0,1149.8,1.2957951]
[1761587887153,0.6503789,1151.5,1149.8,1.2957951]
[1761587887352,0.50194503,1151.4,1149.8,1.2957951]
[1761587887554,0.50194503,1151.3,1149.9,1.2957951]
[1761587887751,0.50194503,1151.2,1149.5,1.2957951]
[1761587887955,0.50194503,1151.1,1149.5,1.2957951]
[1761587888157,0.50194503,1151.0,1149.5,1.2957951]
[1761587888354,0.8365285,1151.6,1149.5,1.2957951]
[1761587888658,1.91579081,1151.5,1149.5,1.2957951]
[1761587888855,0.50179081,1151.4,1149.5,1.2957951]
[1761587889054,0.50179081,1151.3,1149.5,1.2957951]
[1761587889254,0.50179081,1151.2,1149.5,1.2957951]
[1761587889455,0.50179081,1151.1,1149.5,1.2957951]
[1761587889656,1.414,1151.5,1149.5,1.2957951]
[1761587889956,0.50165506,1151.4,1149.5,1.2957951]
[1761587890157,0.50165506,1151.3,1149.5,1.2957951]
[1761587890354,0.50165506,1151.2,1149.5,1.2957951]
[1761587890555,0.50165506,1151.1,1149.5,1.2957951]
[1761587890855,1.414,1151.5,1149.5,1.2957951]
[1761587891055,0.5015324,1151.4,1149.5,1.2957951]
[1761587891255,0.5015324,1151.3,1149.5,1.2957951]
[1761587891459,0.5015324,1151.2,1149.5,1.2957951]
[1761587891763,0.50140642,1151.1,1149.5,1.2957951]
[1761587891964,1.414,1151.5,1149.5,1.2957951]
[1761587892165,0.50140642,1151.4,1149.4,1.2957951]
[1761587892364,0.50140642,1151.3,1149.8,1.2957951]
[1761587892660,0.50140642,1151.2,1149.8,1.2957951]
[1761587892963,0.50140642,1151.1,1149.9,1.2957951]
[1761587893160,0.6503789,1151.4,1149.9,1.2957951]
[1761587893360,0.50125948,1151.3,1149.9,1.2957951]
[1761587893560,0.50125948,1151.2,1149.9,1.2957951]
[1761587893764,0.50125948,1151.1,1149.9,1.2957951]
[1761587894064,0.50125948,1151.0,1149.7,1.2957951]
[1761587894265,0.6503789,1151.4,1149.7,1.2957951]
[1761587894466,0.50128077,1151.3,1149.7,1.2957951]
[1761587894661,0.50128077,1151.2,1149.7,1.2957951]
[1761587894865,0.50128077,1151.1,1149.6,1.2957951]
[1761587895062,0.6503789,1151.3,1149.6,1.2957951]
[1761587895063,0.50128077,1151.0,1149.6,1.2957951]
[1761587895262,0.50128077,1150.9,1149.7,1.2957951]
[1761587895463,0.6503789,1151.3,1149.7,1.2957951]
[1761587895662,0.50128712,1151.2,1149.7,1.2957951]
[1761587895866,0.50128712,1151.1,1149.7,1.2957951]
[1761587896166,0.50128712,1151.0,1149.7,1.2957951]
[1761587896362,0.50128712,1150.9,1149.7,1.2957951]
[1761587896566,0.6503789,1151.2,1149.7,1.2957951]
[1761587896767,0.50129429,1151.1,1149.7,1.2957951]
[1761587896967,0.50129429,1151.0,1149.7,1.2957951]
[1761587897168,0.50129429,1150.9,1149.7,1.2957951]
[1761587897469,0.6503789,1151.3,1149.7,1.2957951]
[1761587897764,0.50128644,1151.2,1149.7,1.2957951]
[1761587897963,0.50128644,1151.1,1149.7,1.2957951]
[1761587898161,0.50128644,1151.0,1149.7,1.2957951]
[1761587898368,0.50128644,1150.9,1149.7,1.2957951]
[1761587898568,0.6503789,1151.3,1149.7,1.2957951]
[1761587898767,0.50128548,1151.2,1149.7,1.2957951]
[1761587898968,0.50128548,1151.1,1149.7,1.2957951]
[1761587899166,0.50128548,1151.0,1149.7,1.2957951]
[1761587899465,0.50128548,1150.9,1149.7,1.2957951]
[1761587899763,0.6503789,1151.2,1149.7,1.2957951]
[1761587899963,0.50129221,1151.1,1149.7,1.2957951]
[1761587900166,0.50129221,1151.0,1149.7,1.2957951]
[1761587900368,0.50129221,1150.9,1149.7,1.2957951]
[1761587900664,0.6503789,1151.2,1149.7,1.2957951]
[1761587900865,0.50129682,1151.1,1149.7,1.2957951]
[1761587901166,0.50129682,1151.0,1149.7,1.2957951]
[1761587901468,0.50129682,1150.9,1149.7,1.2957951]
[1761587901667,0.6503789,1151.2,1149.7,1.2957951]
[1761587901865,0.50130312,1151.1,1149.6,1.2957951]
[1761587902071,0.50130312,1151.0,1149.6,1.2957951]
[1761587902268,0.50130312,1150.9,1149.6,1.2957951]
[1761587902472,0.6503789,1151.3,1149.6,1.2957951]
[1761587902772,0.50131137,1151.2,1149.7,1.2957951]
[1761587902972,0.50131137,1151.1,1149.7,1.2957951]
[1761587903173,0.50131137,1151.0,1149.7,1.2957951]
[1761587903369,0.50131137,1150.9,1149.7,1.2957951]
[1761587903569,0.6503789,1151.3,1149.7,1.2957951]
[1761587903770,0.50131281,1151.2,1149.7,1.2957951]
[1761587903972,0.50131281,1151.1,1149.6,1.2957951]
[1761587904172,0.50131281,1151.0,1149.6,1.2957951]
[1761587904476,0.50131281,1150.9,1149.6,1.2957951]
[1761587904675,0.6503789,1151.3,1149.6,1.2957951]
[1761587904976,0.50133213,1151.2,1149.6,1.2957951]
[1761587905171,0.50133213,1151.1,1149.6,1.2957951]
[1761587905370,0.50133213,1151.0,1149.6,1.2957951]
[1761587905571,0.50133213,1150.9,1149.6,1.2957951]
[1761587905771,0.6503789,1151.3,1149.6,1.2957951]
[1761587905975,0.6503789,1151.3,1148.9,0.15129744]
[1761587905976,0.50136655,1151.2,1149.5,1.2957951]
[1761587906177,0.50136655,1151.1,1149.5,1.2957951]
[1761587906478,0.50136655,1151.0,1149.5,1.2957951]
[1761587906776,0.50136655,1150.9,1149.5,1.2957951]
[1761587907072,0.50136655,1150.8,1149.5,1.2957951]
[1761587907272,0.6503789,1151.3,1149.5,1.2957951]
[1761587907473,0.50147066,1151.2,1149.5,1.2957951]
[1761587907776,0.50147066,1151.1,1149.5,1.2957951]
[1761587907973,0.50147066,1151.0,1149.5,1.2957951]
[1761587908177,0.50147066,1150.9,1149.5,1.2957951]
[1761587908374,0.50147066,1150.8,1149.5,1.2957951]
[1761587908676,0.6503789,1151.3,1149.5,1.2957951]
[1761587908880,0.50148802,1151.2,1149.5,1.2957951]
[1761587909073,0.50148802,1151.1,1149.5,1.2957951]
[1761587909274,0.50148802,1151.0,1149.5,1.2957951]
[1761587909474,0.50148802,1150.9,1149.5,1.2957951]
[1761587909776,0.50148802,1150.8,1149.5,1.2957951]
[1761587909977,0.6503789,1151.3,1149.5,1.2957951]
[1761587910178,0.50150106,1151.2,1149.5,1.2957951]
[1761587910475,0.50150106,1151.1,1149.5,1.2957951]
[1761587910674,0.50150106,1151.0,1149.5,1.2957951]
[1761587910876,0.50150106,1150.9,1149.5,1.2957951]
[1761587911074,0.50150106,1150.8,1149.5,1.2957951]
[1761587911273,0.6503789,1151.2,1149.5,1.2957951]
[1761587911478,0.50154369,1151.1,1149.6,1.2957951]
[1761587911679,0.50154369,1151.0,1149.6,1.2957951]
[1761587911877,0.50154369,1150.9,1149.6,1.2957951]
[1761587912077,0.50154369,1150.8,1149.6,1.2957951]
[1761587912276,0.6503789,1151.2,1149.6,1.2957951]
[1761587912477,0.50156732,1151.1,1149.6,1.2957951]
[1761587912676,0.50156732,1151.0,1149.6,1.2957951]
[1761587912878,0.50156732,1150.9,1149.6,1.2957951]
[1761587913079,0.6503789,1151.3,1149.7,1.2957951]
[1761587913282,1.15201789,1151.2,1149.8,1.2957951]
[1761587913576,1.2884697,1151.6,1149.8,1.2957951]
[1761587913577,0.50163899,1151.1,1149.8,1.2957951]
[1761587913781,0.50163899,1151.0,1149.8,1.2957951]
[1761587914081,0.50163899,1150.9,1149.8,1.2957951]
[1761587914278,0.6503789,1151.3,1149.8,1.2957951]
[1761587914480,1.81161999,1151.2,1149.8,1.2957951]
[1761587914681,0.50161999,1151.1,1149.8,1.2957951]
[1761587914880,0.50161999,1151.0,1149.8,1.2957951]
[1761587915081,0.50161999,1150.9,1149.8,1.2957951]
[1761587915279,1.31,1151.2,1149.8,1.2957951]
[1761587915479,0.50162286,1151.1,1149.8,1.2957951]
[1761587915678,0.50162286,1151.0,1149.8,1.2957951]
[1761587915883,0.50162286,1150.9,1149.8,1.2957951]
[1761587916184,1.31,1151.2,1149.8,1.2957951]
[1761587916483,0.501616,1151.1,1149.8,1.2957951]
[1761587916783,0.501616,1151.0,1149.8,1.2957951]
[1761587916981,0.501616,1150.9,1149.8,1.2957951]
[1761587917177,1.31,1151.2,1149.8,1.2957951]
[1761587917378,0.50163591,1151.1,1149.8,1.2957951]
[1761587917579,0.50163591,1151.0,1149.8,1.2957951]
[1761587917780,0.50163591,1150.9,1149.8,1.2957951]
[1761587917979,1.31,1151.2,1149.8,1.2957951]
[1761587918180,0.50163764,1151.1,1149.8,1.2957951]
[1761587918382,0.50163764,1151.0,1149.8,1.2957951]
[1761587918584,0.50163764,1150.9,1149.8,1.2957951]
[1761587918884,1.31,1151.2,1149.8,1.2957951]
[1761587919084,0.50165315,1151.1,1149.8,1.2957951]
[1761587919286,0.50165315,1151.0,1149.8,1.2957951]
[1761587919583,0.50165315,1151.0,1148.9,0.15129744]
[1761587919584,0.50165315,1150.9,1149.7,1.2957951]
[1761587919785,1.31,1151.2,1149.7,1.2957951]
[1761587920080,0.50167414,1151.1,1149.7,1.2957951]
[1761587920279,0.50167414,1151.0,1149.7,1.2957951]
[1761587920481,1.31,1151.2,1149.7,1.2957951]
[1761587920482,0.50167414,1150.9,1149.7,1.2957951]
[1761587920681,1.31,1151.2,1149.7,1.2957951]
[1761587920882,0.50169716,1151.1,1149.7,1.2957951]
[1761587921082,0.50169716,1151.0,1149.7,1.2957951]
[1761587921280,0.50169716,1150.9,1149.7,1.2957951]
[1761587921481,1.31,1151.2,1149.7,1.2957951]
[1761587921686,0.5017154,1151.1,1149.7,1.2957951]
[1761587921885,0.5017154,1151.0,1149.7,1.2957951]
[1761587922085,0.5017154,1150.9,1149.7,1.2957951]
[1761587922287,1.31,1151.2,1149.7,1.2957951]
[1761587922487,0.50172565,1151.1,1149.7,1.2957951]
[1761587922684,0.50172565,1151.0,1149.7,1.2957951]
[1761587922888,0.50172565,1150.9,1149.7,1.2957951]
[1761587923085,1.31,1151.2,1149.7,1.2957951]
[1761587923286,0.50174084,1151.1,1149.7,1.2957951]
[1761587923487,0.50174084,1151.0,1149.7,1.2957951]
[1761587923684,1.31,1151.2,1149.7,1.2957951]
[1761587923685,0.50174084,1150.9,1149.7,1.2957951]
[1761587923989,1.31,1151.2,1149.7,1.2957951]
[1761587924188,0.50174084,1151.1,1149.7,1.2957951]
[1761587924490,0.50174084,1151.0,1149.7,1.2957951]
[1761587924686,0.50174084,1150.9,1149.7,1.2957951]
[1761587924884,1.31,1151.2,1149.7,1.2957951]
[1761587925087,0.5017575,1151.1,1149.7,1.2957951]
[1761587925389,0.5017575,1151.0,1149.7,1.2957951]
[1761587925585,0.5017575,1150.9,1149.7,1.2957951]
[1761587925886,1.31,1151.2,1149.7,1.2957951]
[1761587926091,0.50178005,1151.1,1149.7,1.2957951]
[1761587926290,0.50178005,1151.0,1149.7,1.2957951]
[1761587926487,1.31,1151.2,1149.8,1.2957951]
[1761587926688,0.50174507,1151.1,1150.0,1.2957951]
[1761587926886,1.31,1151.2,1150.0,1.2957951]
[1761587927092,0.50174518,1151.1,1150.0,1.2957951]
[1761587927291,1.31,1151.2,1150.0,1.2957951]
[1761587927492,0.50173767,1151.1,1150.0,1.2957951]
[1761587927694,1.31,1151.2,1150.0,1.2957951]
[1761587927892,0.50173767,1151.1,1150.0,1.2957951]
[1761587928192,1.31,1151.2,1150.0,1.2957951]
[1761587928487,0.50173698,1151.1,1150.0,1.2957951]
[1761587928694,1.31,1151.2,1150.0,1.2957951]
[1761587928891,0.50173665,1151.1,1150.0,1.2957951]
[1761587929089,1.31,1151.2,1150.0,1.2957951]
[1761587929289,0.50174064,1151.1,1150.0,1.2957951]
[1761587929492,1.31,1151.2,1150.0,1.2957951]
[1761587929692,0.50174064,1151.1,1150.0,1.2957951]
[1761587929890,1.31,1151.2,1150.0,1.2957951]
[1761587930088,0.50173988,1151.1,1150.0,1.2957951]
[1761587930293,1.31,1151.2,1150.0,1.2957951]
[1761587930489,0.50174837,1151.1,1150.0,1.2957951]
[1761587930693,1.31,1151.2,1150.0,1.2957951]
[1761587930890,0.50172425,1151.1,1150.0,1.2957951]
[1761587931094,1.31,1151.2,1150.0,1.2957951]
[1761587931294,0.50171775,1151.1,1150.0,1.2957951]
[1761587931496,1.31,1151.2,1150.0,1.2957951]
[1761587931695,0.50171808,1151.1,1150.0,1.2957951]
[1761587931895,1.31,1151.2,1150.0,1.2957951]
[1761587932094,0.50171797,1151.1,1150.0,1.2957951]
[1761587932293,1.31,1151.2,1150.0,1.2957951]
[1761587932497,0.5017178,1151.1,1150.0,1.2957951]
[1761587932795,1.31,1151.2,1150.0,1.2957951]
[1761587932993,0.5017178,1151.1,1150.0,1.2957951]
[1761587933197,1.31,1151.2,1150.0,1.2957951]
[1761587933498,0.50172391,1151.1,1150.0,1.2957951]
[1761587933693,1.31,1151.2,1150.0,1.2957951]
[1761587933897,0.50171839,1151.1,1150.0,1.2957951]
[1761587934094,1.31,1151.2,1150.0,1.2957951]
[1761587934298,0.50172545,1151.1,1150.0,1.2957951]
[1761587934497,1.31,1151.2,1150.0,1.2957951]
[1761587934698,0.50172523,1151.1,1150.0,1.2957951]
[1761587934899,1.31,1151.2,1150.0,1.2957951]
[1761587935099,0.50172534,1151.1,1150.0,1.2957951]
[1761587935293,1.31,1151.2,1150.0,1.2957951]
[1761587935498,0.50173598,1151.1,1150.0,1.2957951]
[1761587935697,1.31,1151.2,1150.0,1.2957951]
[1761587935995,0.5017362,1151.1,1150.0,1.2957951]
[1761587936194,1.31,1151.2,1150.0,1.2957951]
[1761587936399,0.5017659,1151.1,1149.7,1.2957951]
[1761587936698,1.31,1151.2,1149.6,1.2957951]
[1761587936898,0.50177601,1151.1,1149.6,1.2957951]
[1761587937098,1.31,1151.2,1149.6,1.2957951]
[1761587937292,0.50181034,1151.1,1149.6,1.2957951]
[1761587937497,1.31,1151.2,1149.6,1.2957951]
[1761587937695,0.50180979,1151.1,1149.6,1.2957951]
[1761587937994,1.31,1151.2,1149.6,1.2957951]
[1761587938199,0.50185741,1151.1,1149.6,1.2957951]
[1761587938397,0.50185741,1151.0,1149.6,1.2957951]
[1761587938596,0.6503789,1151.6,1149.6,1.2957951]
[1761587938798,0.50185924,1151.5,1149.6,1.2957951]
[1761587938999,0.50185924,1151.4,1149.6,1.2957951]
[1761587939200,0.50185924,1151.3,1149.6,1.2957951]
[1761587939399,0.50185924,1151.2,1149.6,1.2957951]
[1761587939600,0.50185924,1151.1,1149.5,1.2957951]
[1761587939900,0.83839498,1151.6,1149.5,1.2957951]
[1761587940096,0.50190094,1151.5,1149.5,1.2957951]
[1761587940396,0.50190094,1151.4,1149.5,1.2957951]
[1761587940700,0.50190094,1151.3,1149.5,1.2957951]
[1761587940899,0.50190094,1151.2,1149.5,1.2957951]
[1761587941199,0.5019016,1151.1,1149.5,1.2957951]
[1761587941401,0.5019016,1151.0,1149.5,1.2957951]
[1761587941696,0.83839498,1151.6,1149.5,1.2957951]
[1761587941900,1.46895298,1151.5,1149.5,1.2957951]
[1761587942099,0.50195298,1151.4,1149.5,1.2957951]
[1761587942297,0.50195298,1151.3,1149.5,1.2957951]
[1761587942497,0.50195298,1151.2,1149.5,1.2957951]
[1761587942696,0.50195298,1151.1,1149.5,1.2957951]
[1761587942898,0.967,1151.5,1149.5,1.2957951]
[1761587942899,0.50195298,1151.0,1149.5,1.2957951]
[1761587943096,0.967,1151.5,1149.5,1.2957951]
[1761587943300,0.50190576,1151.4,1149.5,1.2957951]
[1761587943499,0.50190576,1151.3,1149.5,1.2957951]
[1761587943698,0.50190576,1151.2,1149.5,1.2957951]
[1761587943896,0.50190576,1151.1,1149.5,1.2957951]
[1761587944196,0.50190576,1151.0,1149.5,1.2957951]
[1761587944401,0.967,1151.5,1149.5,1.2957951]
[1761587944599,0.50190742,1151.4,1149.5,1.2957951]
[1761587944799,0.50190742,1151.3,1149.5,1.2957951]
[1761587944997,0.50190742,1151.2,1149.6,1.2957951]
[1761587945197,0.50190742,1151.1,1149.6,1.2957951]
[1761587945401,0.50190742,1151.0,1149.6,1.2957951]
[1761587945701,0.50190742,1150.9,1149.6,1.2957951]
[1761587945999,0.649485,1151.4,1149.6,1.2957951]
[1761587946298,0.50197145,1151.3,1149.6,1.2957951]
[1761587946502,0.50197145,1151.2,1149.6,1.2957951]
[1761587946703,0.50197145,1151.1,1149.6,1.2957951]
[1761587946999,0.50197145,1151.0,1149.6,1.2957951]
[1761587947198,0.50197145,1150.9,1149.6,1.2957951]
[1761587947402,0.649485,1151.4,1149.6,1.2957951]
[1761587947599,0.50198165,1151.3,1149.6,1.2957951]
[1761587947899,0.50198165,1151.2,1149.6,1.2957951]
[1761587948097,0.50198165,1151.1,1149.6,1.2957951]
[1761587948299,0.50198165,1151.0,1149.6,1.2957951]
[1761587948499,0.50198165,1150.9,1149.6,1.2957951]
[1761587948700,0.649485,1151.4,1149.6,1.2957951]
[1761587948898,0.50199859,1151.3,1149.6,1.2957951]
[1761587949099,0.50199859,1151.2,1149.6,1.2957951]
[1761587949299,0.50199859,1151.1,1149.6,1.2957951]
[1761587949503,0.50199859,1151.0,1149.6,1.2957951]
[1761587949703,0.50199859,1150.9,1149.6,1.2957951]
[1761587949903,0.649485,1151.4,1149.6,1.2957951]
[1761587950104,0.50202149,1151.3,1149.6,1.2957951]
[1761587950404,0.50202149,1151.2,1149.6,1.2957951]
[1761587950700,0.50202149,1151.1,1149.6,1.2957951]
[1761587951000,0.50202149,1151.0,1149.6,1.2957951]